[Event "Titled Tuesday Blitz March 07 Late 2023"]
[White "Liang, Awonder"]
[Black "sissahungrychess"]
[WhiteFideId "2056437"]
[WhiteElo "2508"]
[BlackElo "2387"]
[Result "1-0"]
[Round "02"]
[TimeControl "180+2"]
[Date "2023.03.07"]
[WhiteClock "0:01:57"]
[BlackClock "0:00:14"]

1. b3 {[%clk 0:03:00]}  e5 {[%clk 0:02:59]} 2. Bb2 {[%clk 0:03:00]}  Nc6 {[%clk 0:03:00]} 3. e3 {[%clk 0:03:01]}  Nf6 {[%clk 0:02:59]} 4. d3 {[%clk 0:03:00]}  d6 {[%clk 0:02:58]} 5. Nd2 {[%clk 0:03:01]}  Bg4 {[%clk 0:02:58]} 6. Ngf3 {[%clk 0:03:00]}  Be7 {[%clk 0:02:57]} 7. h3 {[%clk 0:03:01]}  Bh5 {[%clk 0:02:55]} 8. g4 {[%clk 0:03:01]}  Bg6 {[%clk 0:02:55]} 9. Bg2 {[%clk 0:03:01]}  a5 {[%clk 0:02:50]} 10. a3 {[%clk 0:03:01]}  Qd7 {[%clk 0:02:49]} 11. Qe2 {[%clk 0:03:01]}  h5 {[%clk 0:02:37]} 12. g5 {[%clk 0:03:01]}  Nh7 {[%clk 0:02:37]} 13. h4 {[%clk 0:03:01]}  Nf8 {[%clk 0:02:37]} 14. O-O-O {[%clk 0:02:58]}  Bf5 {[%clk 0:02:37]} 15. Kb1 {[%clk 0:02:58]}  Ng6 {[%clk 0:02:37]} 16. Ne4 {[%clk 0:02:53]}  a4 {[%clk 0:02:10]} 17. b4 {[%clk 0:02:53]}  Bg4 {[%clk 0:01:57]} 18. c4 {[%clk 0:02:52]}  O-O {[%clk 0:01:40]} 19. Qc2 {[%clk 0:02:52]}  Rfd8 {[%clk 0:01:32]} 20. Rd2 {[%clk 0:02:51]}  Qf5 {[%clk 0:01:31]} 21. Ng3 {[%clk 0:02:50]}  Qe6 {[%clk 0:01:30]} 22. Nh2 {[%clk 0:02:49]}  Nxh4 {[%clk 0:01:17]} 23. Bd5 {[%clk 0:02:50]}  Qd7 {[%clk 0:01:11]} 24. d4 {[%clk 0:02:41]}  exd4 {[%clk 0:00:57]} 25. g6 {[%clk 0:02:41]}  Bf6 {[%clk 0:00:32]} 26. gxf7+ {[%clk 0:02:41]}  Kf8 {[%clk 0:00:29]} 27. Nxg4 {[%clk 0:02:32]}  Qxg4 {[%clk 0:00:28]} 28. Qh7 {[%clk 0:02:31]}  Qg6+ {[%clk 0:00:24]} 29. Qxg6 {[%clk 0:02:30]}  Nxg6 {[%clk 0:00:25]} 30. exd4 {[%clk 0:02:24]}  Nf4 {[%clk 0:00:18]} 31. Bf3 {[%clk 0:02:01]}  h4 {[%clk 0:00:18]} 32. Nh5 {[%clk 0:01:59]}  Kxf7 {[%clk 0:00:18]} 33. Nxf4 {[%clk 0:01:59]}  Ne7 {[%clk 0:00:16]} 34. Re2 {[%clk 0:01:57]}  Nf5 {[%clk 0:00:16]} 35. Bd5+ {[%clk 0:01:56]}  Kf8 {[%clk 0:00:14]} 36. Ng6# {[%clk 0:01:57]} 1-0


[Site "https://www.chess.com"]

[Event "Titled Tuesday Blitz March 07 Late 2023"]
[White "Zakhartsov, Vladimir"]
[Black "Federzoni, Enzo"]
[WhiteFideId "4145097"]
[BlackFideId "2173301"]
[WhiteElo "2521"]
[BlackElo "2039"]
[Result "1-0"]
[Round "02"]
[TimeControl "180+2"]
[Date "2023.03.07"]
[WhiteClock "0:01:12"]
[BlackClock "0:01:03"]

1. e4 {[%clk 0:02:57]}  c5 {[%clk 0:02:57]} 2. Nf3 {[%clk 0:02:57]}  d6 {[%clk 0:02:57]} 3. c3 {[%clk 0:02:52]}  Nf6 {[%clk 0:02:57]} 4. Bd3 {[%clk 0:02:52]}  Nc6 {[%clk 0:02:56]} 5. h3 {[%clk 0:02:51]}  e5 {[%clk 0:02:45]} 6. Bc2 {[%clk 0:02:46]}  d5 {[%clk 0:02:44]} 7. exd5 {[%clk 0:02:43]}  Qxd5 {[%clk 0:02:45]} 8. O-O {[%clk 0:02:40]}  e4 {[%clk 0:02:30]} 9. Re1 {[%clk 0:02:33]}  Be6 {[%clk 0:02:30]} 10. Nh2 {[%clk 0:02:28]}  O-O-O {[%clk 0:02:28]} 11. Nf1 {[%clk 0:02:18]}  Bf5 {[%clk 0:02:26]} 12. Ne3 {[%clk 0:02:12]}  Qd7 {[%clk 0:02:25]} 13. Nxf5 {[%clk 0:02:11]}  Qxf5 {[%clk 0:02:26]} 14. Qe2 {[%clk 0:02:11]}  Bd6 {[%clk 0:02:15]} 15. Bxe4 {[%clk 0:01:57]}  Qe5 {[%clk 0:01:47]} 16. g3 {[%clk 0:01:33]}  Rhe8 {[%clk 0:01:45]} 17. d3 {[%clk 0:01:33]}  c4 {[%clk 0:01:40]} 18. Qf3 {[%clk 0:01:20]}  Kb8 {[%clk 0:01:17]} 19. Bf4 {[%clk 0:01:16]}  Qb5 {[%clk 0:01:09]} 20. Na3 {[%clk 0:01:13]}  Qxb2 {[%clk 0:01:03]} 21. Bxd6+ {[%clk 0:01:12]}  Rxd6 {[%clk 0:01:03]} 22. Nxc4 {[%clk 0:01:12]} 1-0


[Site "https://www.chess.com"]

[Event "Titled Tuesday Blitz March 07 Late 2023"]
[White "Boyer, Mahel"]
[Black "Rego, Pedro Filipe"]
[WhiteFideId "45102422"]
[BlackFideId "1904310"]
[WhiteElo "2439"]
[BlackElo "2193"]
[Result "1-0"]
[Round "02"]
[TimeControl "180+2"]
[Date "2023.03.07"]
[WhiteClock "0:00:03"]
[BlackClock "0:00:07"]

1. e4 {[%clk 0:03:00]}  c5 {[%clk 0:02:57]} 2. d3 {[%clk 0:02:35]}  Nc6 {[%clk 0:02:56]} 3. g3 {[%clk 0:02:36]}  g6 {[%clk 0:02:51]} 4. Bg2 {[%clk 0:02:36]}  Bg7 {[%clk 0:02:52]} 5. f4 {[%clk 0:02:36]}  d6 {[%clk 0:02:39]} 6. Nf3 {[%clk 0:02:35]}  Nh6 {[%clk 0:02:33]} 7. O-O {[%clk 0:02:36]}  O-O {[%clk 0:02:29]} 8. c3 {[%clk 0:02:35]}  f5 {[%clk 0:02:26]} 9. h3 {[%clk 0:02:35]}  e5 {[%clk 0:02:19]} 10. fxe5 {[%clk 0:02:31]}  dxe5 {[%clk 0:02:13]} 11. Be3 {[%clk 0:02:16]}  c4 {[%clk 0:01:53]} 12. dxc4 {[%clk 0:02:11]}  fxe4 {[%clk 0:01:50]} 13. Ng5 {[%clk 0:01:55]}  Nf5 {[%clk 0:01:43]} 14. Qe1 {[%clk 0:01:31]}  Bh6 {[%clk 0:01:30]} 15. h4 {[%clk 0:01:11]}  Qd3 {[%clk 0:01:13]} 16. Bc5 {[%clk 0:00:53]}  Bxg5 {[%clk 0:00:39]} 17. hxg5 {[%clk 0:00:18]}  Rd8 {[%clk 0:00:34]} 18. Bxe4 {[%clk 0:00:13]}  Qxg3+ {[%clk 0:00:32]} 19. Qxg3 {[%clk 0:00:13]}  Nxg3 {[%clk 0:00:32]} 20. Bd5+ {[%clk 0:00:14]}  Kh8 {[%clk 0:00:30]} 21. Rf7 {[%clk 0:00:04]}  Ne2+ {[%clk 0:00:25]} 22. Kh2 {[%clk 0:00:02]}  Nf4 {[%clk 0:00:26]} 23. Na3 {[%clk 0:00:01]}  Be6 {[%clk 0:00:17]} 24. Rxf4 {[%clk 0:00:01]}  Bxd5 {[%clk 0:00:13]} 25. Rf2 {[%clk 0:00:01]}  Be6 {[%clk 0:00:12]} 26. Raf1 {[%clk 0:00:01]}  Bf5 {[%clk 0:00:12]} 27. Nb5 {[%clk 0:00:01]}  Rd3 {[%clk 0:00:12]} 28. Nd6 {[%clk 0:00:01]}  Rh3+ {[%clk 0:00:11]} 29. Kg2 {[%clk 0:00:02]}  Rh5 {[%clk 0:00:11]} 30. Nxf5 {[%clk 0:00:01]}  Rxg5+ {[%clk 0:00:12]} 31. Ng3 {[%clk 0:00:02]}  h5 {[%clk 0:00:10]} 32. Be3 {[%clk 0:00:03]}  Rg4 {[%clk 0:00:10]} 33. Kh3 {[%clk 0:00:04]}  Ne7 {[%clk 0:00:09]} 34. Rf7 {[%clk 0:00:03]}  Re8 {[%clk 0:00:07]} 35. R1f6 {[%clk 0:00:02]}  Kg8 {[%clk 0:00:07]} 36. Bh6 {[%clk 0:00:03]} 1-0


[Site "https://www.chess.com"]

[Event "Titled Tuesday Blitz March 07 Late 2023"]
[White "Carrasco Miranda, Andres"]
[Black "Aldokhin, Ivan"]
[WhiteFideId "3405990"]
[BlackFideId "24115720"]
[WhiteElo "2183"]
[BlackElo "2322"]
[Result "0-1"]
[Round "02"]
[TimeControl "180+2"]
[Date "2023.03.07"]
[WhiteClock "0:00:01"]
[BlackClock "0:00:05"]

1. d4 {[%clk 0:02:51]}  Nf6 {[%clk 0:02:58]} 2. c4 {[%clk 0:02:46]}  g6 {[%clk 0:02:58]} 3. g3 {[%clk 0:02:46]}  Bg7 {[%clk 0:02:59]} 4. Bg2 {[%clk 0:02:45]}  O-O {[%clk 0:03:00]} 5. Nc3 {[%clk 0:02:44]}  d6 {[%clk 0:03:00]} 6. Nf3 {[%clk 0:02:41]}  Nc6 {[%clk 0:03:01]} 7. O-O {[%clk 0:02:39]}  Bf5 {[%clk 0:03:01]} 8. d5 {[%clk 0:02:22]}  Na5 {[%clk 0:03:01]} 9. Nd2 {[%clk 0:02:22]}  c5 {[%clk 0:03:00]} 10. e4 {[%clk 0:02:17]}  Bd7 {[%clk 0:03:00]} 11. Rb1 {[%clk 0:02:16]}  a6 {[%clk 0:02:56]} 12. b3 {[%clk 0:02:13]}  b5 {[%clk 0:02:53]} 13. Bb2 {[%clk 0:02:12]}  e6 {[%clk 0:02:48]} 14. Re1 {[%clk 0:02:04]}  exd5 {[%clk 0:02:47]} 15. cxd5 {[%clk 0:02:04]}  Re8 {[%clk 0:02:38]} 16. e5 {[%clk 0:01:50]}  Rxe5 {[%clk 0:02:23]} 17. Rxe5 {[%clk 0:01:49]}  dxe5 {[%clk 0:02:24]} 18. Nde4 {[%clk 0:01:44]}  Nxe4 {[%clk 0:02:11]} 19. Nxe4 {[%clk 0:01:42]}  Qb6 {[%clk 0:01:56]} 20. Qd2 {[%clk 0:00:56]}  Rc8 {[%clk 0:01:38]} 21. h4 {[%clk 0:00:41]}  b4 {[%clk 0:01:20]} 22. h5 {[%clk 0:00:39]}  c4 {[%clk 0:01:20]} 23. h6 {[%clk 0:00:33]}  c3 {[%clk 0:00:41]} 24. Qg5 {[%clk 0:00:31]}  Bh8 {[%clk 0:00:35]} 25. d6 {[%clk 0:00:24]}  Qd8 {[%clk 0:00:30]} 26. Qxd8+ {[%clk 0:00:20]}  Rxd8 {[%clk 0:00:30]} 27. Bc1 {[%clk 0:00:21]}  Bf5 {[%clk 0:00:25]} 28. Bg5 {[%clk 0:00:21]}  Rxd6 {[%clk 0:00:22]} 29. Re1 {[%clk 0:00:16]}  Bxe4 {[%clk 0:00:17]} 30. Bxe4 {[%clk 0:00:17]}  f5 {[%clk 0:00:15]} 31. Bg2 {[%clk 0:00:14]}  e4 {[%clk 0:00:14]} 32. Bf1 {[%clk 0:00:14]}  Be5 {[%clk 0:00:12]} 33. Be3 {[%clk 0:00:13]}  Nb7 {[%clk 0:00:08]} 34. Bc4+ {[%clk 0:00:12]}  Kf8 {[%clk 0:00:07]} 35. a3 {[%clk 0:00:12]}  a5 {[%clk 0:00:06]} 36. axb4 {[%clk 0:00:12]}  axb4 {[%clk 0:00:07]} 37. Ra1 {[%clk 0:00:12]}  Ke7 {[%clk 0:00:08]} 38. Ra7 {[%clk 0:00:12]}  Rd7 {[%clk 0:00:08]} 39. Kg2 {[%clk 0:00:10]}  c2 {[%clk 0:00:08]} 40. Bg5+ {[%clk 0:00:09]}  Bf6 {[%clk 0:00:07]} 41. Bf4 {[%clk 0:00:09]}  Bb2 {[%clk 0:00:07]} 42. Bg5+ {[%clk 0:00:08]}  Kd6 {[%clk 0:00:07]} 43. Ra6+ {[%clk 0:00:06]}  Kc5 {[%clk 0:00:04]} 44. Be3+ {[%clk 0:00:06]}  Bd4 {[%clk 0:00:04]} 45. Bc1 {[%clk 0:00:05]}  Nd6 {[%clk 0:00:04]} 46. Be6 {[%clk 0:00:01]}  Nb5 {[%clk 0:00:05]} 0-1


[Site "https://www.chess.com"]

[Event "Titled Tuesday Blitz March 07 Late 2023"]
[White "Rytenko, Vsevolod"]
[Black "Needleman, Gaston"]
[WhiteFideId "14133040"]
[BlackFideId "113735"]
[WhiteElo "2262"]
[BlackElo "2382"]
[Result "1-0"]
[Round "02"]
[TimeControl "180+2"]
[Date "2023.03.07"]
[WhiteClock "0:02:10"]
[BlackClock "0:00:53"]

1. e4 {[%clk 0:03:00]}  c5 {[%clk 0:02:59]} 2. Nf3 {[%clk 0:03:00]}  e6 {[%clk 0:02:59]} 3. d4 {[%clk 0:02:51]}  cxd4 {[%clk 0:03:00]} 4. Nxd4 {[%clk 0:02:52]}  Nc6 {[%clk 0:03:00]} 5. Nc3 {[%clk 0:02:52]}  Qc7 {[%clk 0:02:59]} 6. Ndb5 {[%clk 0:02:45]}  Qb8 {[%clk 0:02:58]} 7. Nd5 {[%clk 0:02:45]}  exd5 {[%clk 0:02:49]} 8. exd5 {[%clk 0:02:46]}  Nf6 {[%clk 0:02:10]} 9. d6 {[%clk 0:02:31]}  Kd8 {[%clk 0:02:02]} 10. Bg5 {[%clk 0:02:29]}  h6 {[%clk 0:01:41]} 11. Bxf6+ {[%clk 0:02:27]}  gxf6 {[%clk 0:01:40]} 12. Qf3 {[%clk 0:02:26]}  Bg7 {[%clk 0:01:35]} 13. O-O-O {[%clk 0:02:26]}  f5 {[%clk 0:01:25]} 14. Qxf5 {[%clk 0:02:18]}  a5 {[%clk 0:01:13]} 15. Qxf7 {[%clk 0:02:16]}  Bf8 {[%clk 0:00:54]} 16. Qf6+ {[%clk 0:02:12]}  Ke8 {[%clk 0:00:53]} 17. Re1+ {[%clk 0:02:10]} 1-0


[Site "https://www.chess.com"]

[Event "Titled Tuesday Blitz March 07 Late 2023"]
[White "Do Valle Cardoso, Lucas"]
[Black "Harriott, Tyrell"]
[WhiteFideId "2163144"]
[BlackFideId "2086484"]
[WhiteElo "2383"]
[BlackElo "2107"]
[Result "1-0"]
[Round "02"]
[TimeControl "180+2"]
[Date "2023.03.07"]
[WhiteClock "0:01:02"]
[BlackClock "0:00:44"]

1. e4 {[%clk 0:03:00]}  e6 {[%clk 0:02:59]} 2. d4 {[%clk 0:03:00]}  d5 {[%clk 0:02:59]} 3. Nc3 {[%clk 0:03:01]}  f5 {[%clk 0:02:59]} 4. exf5 {[%clk 0:03:00]}  exf5 {[%clk 0:03:00]} 5. Nf3 {[%clk 0:03:00]}  Nf6 {[%clk 0:03:00]} 6. Bd3 {[%clk 0:02:57]}  Bd6 {[%clk 0:03:00]} 7. Ne2 {[%clk 0:02:56]}  O-O {[%clk 0:03:00]} 8. O-O {[%clk 0:02:55]}  Ne4 {[%clk 0:02:58]} 9. Bf4 {[%clk 0:02:55]}  Be7 {[%clk 0:02:58]} 10. Ne5 {[%clk 0:02:49]}  Ng5 {[%clk 0:02:53]} 11. h3 {[%clk 0:02:46]}  Ne6 {[%clk 0:02:52]} 12. Bh2 {[%clk 0:02:47]}  c6 {[%clk 0:02:49]} 13. c3 {[%clk 0:02:45]}  Nd7 {[%clk 0:02:44]} 14. Nf4 {[%clk 0:02:42]}  Nxf4 {[%clk 0:02:40]} 15. Bxf4 {[%clk 0:02:42]}  Nf6 {[%clk 0:02:39]} 16. Re1 {[%clk 0:02:41]}  Ne4 {[%clk 0:02:38]} 17. f3 {[%clk 0:02:38]}  Ng5 {[%clk 0:02:38]} 18. a4 {[%clk 0:02:34]}  Ne6 {[%clk 0:02:38]} 19. Bh2 {[%clk 0:02:34]}  Bg5 {[%clk 0:02:37]} 20. a5 {[%clk 0:02:32]}  a6 {[%clk 0:02:37]} 21. Qc2 {[%clk 0:02:20]}  Qf6 {[%clk 0:02:35]} 22. g3 {[%clk 0:02:15]}  Bh6 {[%clk 0:02:27]} 23. Re2 {[%clk 0:02:09]}  Qg5 {[%clk 0:02:23]} 24. Kh1 {[%clk 0:02:05]}  Qh5 {[%clk 0:02:21]} 25. Kg2 {[%clk 0:01:55]}  g6 {[%clk 0:02:14]} 26. Rae1 {[%clk 0:01:53]}  Bg7 {[%clk 0:02:02]} 27. g4 {[%clk 0:01:38]}  fxg4 {[%clk 0:01:58]} 28. hxg4 {[%clk 0:01:39]}  Qh6 {[%clk 0:01:54]} 29. Nxg6 {[%clk 0:01:37]}  Ng5 {[%clk 0:01:44]} 30. Nxf8 {[%clk 0:01:32]}  Qh3+ {[%clk 0:01:42]} 31. Kh1 {[%clk 0:01:33]}  Qxf3+ {[%clk 0:01:31]} 32. Rg2 {[%clk 0:01:33]}  Bxf8 {[%clk 0:01:24]} 33. Rf1 {[%clk 0:01:31]}  Qh3 {[%clk 0:01:19]} 34. Bf5 {[%clk 0:01:06]}  Bd6 {[%clk 0:01:13]} 35. Bxc8 {[%clk 0:01:06]}  Rxc8 {[%clk 0:01:09]} 36. Qf5 {[%clk 0:01:06]}  Bxh2 {[%clk 0:00:48]} 37. Qxg5+ {[%clk 0:01:03]}  Kh8 {[%clk 0:00:46]} 38. Qf6+ {[%clk 0:01:04]}  Kg8 {[%clk 0:00:46]} 39. Qe6+ {[%clk 0:01:03]}  Kg7 {[%clk 0:00:45]} 40. Rf7+ {[%clk 0:01:02]}  Kg8 {[%clk 0:00:44]} 41. Rxb7+ {[%clk 0:01:02]} 1-0


[Site "https://www.chess.com"]

[Event "Titled Tuesday Blitz March 07 Late 2023"]
[White "Silva, Caio Henrique Angelico"]
[Black "Lewtak, Damian"]
[WhiteFideId "22777210"]
[BlackFideId "1141724"]
[WhiteElo "2096"]
[BlackElo "2302"]
[Result "1-0"]
[Round "02"]
[TimeControl "180+2"]
[Date "2023.03.07"]
[WhiteClock "0:00:19"]
[BlackClock "0:00:09"]

1. d4 {[%clk 0:03:00]}  Nf6 {[%clk 0:02:59]} 2. c4 {[%clk 0:03:00]}  e6 {[%clk 0:02:59]} 3. Nf3 {[%clk 0:03:00]}  c5 {[%clk 0:02:58]} 4. d5 {[%clk 0:02:58]}  b5 {[%clk 0:02:58]} 5. dxe6 {[%clk 0:02:57]}  fxe6 {[%clk 0:02:58]} 6. cxb5 {[%clk 0:02:58]}  d5 {[%clk 0:02:58]} 7. g3 {[%clk 0:02:56]}  Nbd7 {[%clk 0:02:54]} 8. Bg2 {[%clk 0:02:56]}  Bd6 {[%clk 0:02:50]} 9. O-O {[%clk 0:02:45]}  O-O {[%clk 0:02:46]} 10. Nc3 {[%clk 0:02:44]}  Bb7 {[%clk 0:02:44]} 11. b3 {[%clk 0:02:37]}  Qe7 {[%clk 0:02:38]} 12. Bb2 {[%clk 0:02:36]}  e5 {[%clk 0:02:38]} 13. Nd2 {[%clk 0:02:31]}  e4 {[%clk 0:02:36]} 14. e3 {[%clk 0:02:29]}  Ne5 {[%clk 0:02:32]} 15. Qc2 {[%clk 0:01:51]}  Bc8 {[%clk 0:02:25]} 16. Rad1 {[%clk 0:01:23]}  Bg4 {[%clk 0:02:22]} 17. f3 {[%clk 0:01:21]}  exf3 {[%clk 0:02:22]} 18. Nxf3 {[%clk 0:01:21]}  Nxf3+ {[%clk 0:02:15]} 19. Bxf3 {[%clk 0:01:21]}  Qxe3+ {[%clk 0:02:15]} 20. Kg2 {[%clk 0:01:21]}  d4 {[%clk 0:01:56]} 21. Bxa8 {[%clk 0:01:15]}  Rxa8 {[%clk 0:01:35]} 22. Rde1 {[%clk 0:01:14]}  Qh6 {[%clk 0:01:34]} 23. Ne4 {[%clk 0:01:05]}  Be7 {[%clk 0:00:58]} 24. Nxf6+ {[%clk 0:01:02]}  Bxf6 {[%clk 0:00:59]} 25. Qxc5 {[%clk 0:00:58]}  Rd8 {[%clk 0:00:40]} 26. Qc4+ {[%clk 0:00:58]}  Kh8 {[%clk 0:00:37]} 27. Bc1 {[%clk 0:00:46]}  Qh3+ {[%clk 0:00:34]} 28. Kg1 {[%clk 0:00:44]}  d3 {[%clk 0:00:27]} 29. Rxf6 {[%clk 0:00:34]}  gxf6 {[%clk 0:00:27]} 30. Qf7 {[%clk 0:00:32]}  Rc8 {[%clk 0:00:09]} 31. Bb2 {[%clk 0:00:19]} 1-0


[Site "https://www.chess.com"]

[Event "Titled Tuesday Blitz March 07 Late 2023"]
[White "Atanasov, Anthony"]
[Black "Kaganskiy, Gleb"]
[WhiteFideId "2623897"]
[BlackFideId "4132025"]
[WhiteElo "2206"]
[BlackElo "2165"]
[Result "0-1"]
[Round "02"]
[TimeControl "180+2"]
[Date "2023.03.07"]
[WhiteClock "0:01:08"]
[BlackClock "0:00:07"]

1. d4 {[%clk 0:03:00]}  Nf6 {[%clk 0:02:50]} 2. Nf3 {[%clk 0:03:00]}  d5 {[%clk 0:02:49]} 3. Bf4 {[%clk 0:03:01]}  c5 {[%clk 0:02:49]} 4. e3 {[%clk 0:03:01]}  Nc6 {[%clk 0:02:49]} 5. Nbd2 {[%clk 0:03:02]}  cxd4 {[%clk 0:02:48]} 6. exd4 {[%clk 0:03:02]}  Bg4 {[%clk 0:02:47]} 7. c3 {[%clk 0:03:02]}  e6 {[%clk 0:02:47]} 8. Qb3 {[%clk 0:03:02]}  Qc8 {[%clk 0:02:46]} 9. Nh4 {[%clk 0:03:02]}  Be7 {[%clk 0:02:38]} 10. h3 {[%clk 0:03:01]}  Bh5 {[%clk 0:02:38]} 11. g4 {[%clk 0:03:02]}  Bg6 {[%clk 0:02:38]} 12. Nxg6 {[%clk 0:03:03]}  hxg6 {[%clk 0:02:38]} 13. Be2 {[%clk 0:03:03]}  Qd7 {[%clk 0:02:18]} 14. Rb1 {[%clk 0:03:03]}  a6 {[%clk 0:02:05]} 15. a4 {[%clk 0:03:02]}  Na5 {[%clk 0:02:04]} 16. Qc2 {[%clk 0:03:00]}  Bd6 {[%clk 0:02:02]} 17. Be5 {[%clk 0:02:53]}  Nc6 {[%clk 0:01:58]} 18. f4 {[%clk 0:02:52]}  Qe7 {[%clk 0:01:36]} 19. Qd3 {[%clk 0:02:41]}  Rh7 {[%clk 0:01:29]} 20. Bf3 {[%clk 0:02:40]}  Nd7 {[%clk 0:01:23]} 21. Bg2 {[%clk 0:02:38]}  Kf8 {[%clk 0:01:05]} 22. Nf3 {[%clk 0:02:37]}  Rh6 {[%clk 0:00:53]} 23. O-O {[%clk 0:02:28]}  Kg8 {[%clk 0:00:37]} 24. Rbe1 {[%clk 0:02:26]}  Na5 {[%clk 0:00:31]} 25. Bxd6 {[%clk 0:02:17]}  Qxd6 {[%clk 0:00:31]} 26. Ne5 {[%clk 0:02:18]}  Nxe5 {[%clk 0:00:27]} 27. fxe5 {[%clk 0:02:18]}  Qe7 {[%clk 0:00:27]} 28. Rf2 {[%clk 0:02:16]}  Nc4 {[%clk 0:00:26]} 29. Ref1 {[%clk 0:02:13]}  Rf8 {[%clk 0:00:24]} 30. b3 {[%clk 0:02:05]}  Nb6 {[%clk 0:00:24]} 31. c4 {[%clk 0:02:04]}  dxc4 {[%clk 0:00:19]} 32. bxc4 {[%clk 0:02:05]}  Nxa4 {[%clk 0:00:19]} 33. Qb3 {[%clk 0:01:58]}  Qd7 {[%clk 0:00:16]} 34. Qxb7 {[%clk 0:01:58]}  Qxb7 {[%clk 0:00:15]} 35. Bxb7 {[%clk 0:01:59]}  Rxh3 {[%clk 0:00:11]} 36. Bxa6 {[%clk 0:01:56]}  Rg3+ {[%clk 0:00:11]} 37. Rg2 {[%clk 0:01:56]}  Rd3 {[%clk 0:00:10]} 38. Ra2 {[%clk 0:01:52]}  Nc3 {[%clk 0:00:10]} 39. Rc2 {[%clk 0:01:49]}  Ne4 {[%clk 0:00:05]} 40. Bb7 {[%clk 0:01:45]}  Rxd4 {[%clk 0:00:05]} 41. Bxe4 {[%clk 0:01:45]}  Rxe4 {[%clk 0:00:05]} 42. c5 {[%clk 0:01:45]}  Rc8 {[%clk 0:00:05]} 43. c6 {[%clk 0:01:45]}  Rxe5 {[%clk 0:00:05]} 44. c7 {[%clk 0:01:44]}  Kf8 {[%clk 0:00:05]} 45. Rb1 {[%clk 0:01:41]}  Ke7 {[%clk 0:00:05]} 46. Rb8 {[%clk 0:01:41]}  Kd7 {[%clk 0:00:05]} 47. Rb7 {[%clk 0:01:29]}  Rd5 {[%clk 0:00:06]} 48. Kg2 {[%clk 0:01:28]}  f6 {[%clk 0:00:06]} 49. Ra7 {[%clk 0:01:28]}  e5 {[%clk 0:00:06]} 50. Kf3 {[%clk 0:01:28]}  Rd4 {[%clk 0:00:06]} 51. g5 {[%clk 0:01:27]}  f5 {[%clk 0:00:05]} 52. Ra6 {[%clk 0:01:27]}  Rd3+ {[%clk 0:00:05]} 53. Ke2 {[%clk 0:01:27]}  Rd6 {[%clk 0:00:05]} 54. Ra5 {[%clk 0:01:26]}  Rxc7 {[%clk 0:00:05]} 55. Rxc7+ {[%clk 0:01:26]}  Kxc7 {[%clk 0:00:06]} 56. Rxe5 {[%clk 0:01:26]}  Kd7 {[%clk 0:00:06]} 57. Kf3 {[%clk 0:01:25]}  Re6 {[%clk 0:00:06]} 58. Rd5+ {[%clk 0:01:25]}  Ke7 {[%clk 0:00:06]} 59. Rd4 {[%clk 0:01:24]}  Re5 {[%clk 0:00:05]} 60. Ra4 {[%clk 0:01:24]}  Rd5 {[%clk 0:00:05]} 61. Ra7+ {[%clk 0:01:23]}  Rd7 {[%clk 0:00:05]} 62. Ra6 {[%clk 0:01:24]}  Rd6 {[%clk 0:00:05]} 63. Ra7+ {[%clk 0:01:24]}  Ke6 {[%clk 0:00:05]} 64. Rxg7 {[%clk 0:01:23]}  Ke5 {[%clk 0:00:05]} 65. Re7+ {[%clk 0:01:23]}  Kd5 {[%clk 0:00:05]} 66. Kf4 {[%clk 0:01:22]}  Re6 {[%clk 0:00:04]} 67. Rd7+ {[%clk 0:01:21]}  Rd6 {[%clk 0:00:05]} 68. Rf7 {[%clk 0:01:22]}  Re6 {[%clk 0:00:05]} 69. Rf8 {[%clk 0:01:17]}  Re4+ {[%clk 0:00:04]} 70. Kf3 {[%clk 0:01:17]}  Rg4 {[%clk 0:00:05]} 71. Rd8+ {[%clk 0:01:17]}  Ke6 {[%clk 0:00:06]} 72. Ra8 {[%clk 0:01:11]}  Rxg5 {[%clk 0:00:05]} 73. Ra6+ {[%clk 0:01:11]}  Kf7 {[%clk 0:00:05]} 74. Ra7+ {[%clk 0:01:12]}  Kg8 {[%clk 0:00:05]} 75. Kf4 {[%clk 0:01:12]}  Rg4+ {[%clk 0:00:06]} 76. Ke5 {[%clk 0:01:13]}  Rg1 {[%clk 0:00:03]} 77. Kf6 {[%clk 0:01:14]}  Kh8 {[%clk 0:00:03]} 78. Rb7 {[%clk 0:01:13]}  f4 {[%clk 0:00:03]} 79. Kf7 {[%clk 0:01:11]}  f3 {[%clk 0:00:03]} 80. Rb2 {[%clk 0:01:10]}  Rh1 {[%clk 0:00:02]} 81. Rf2 {[%clk 0:01:10]}  Rh3 {[%clk 0:00:02]} 82. Kxg6 {[%clk 0:01:10]}  Kg8 {[%clk 0:00:02]} 83. Kf6 {[%clk 0:01:10]}  Kf8 {[%clk 0:00:03]} 84. Rf1 {[%clk 0:01:10]}  Ke8 {[%clk 0:00:03]} 85. Rd1 {[%clk 0:01:10]}  Rh6+ {[%clk 0:00:02]} 86. Kg7 {[%clk 0:01:09]}  Rc6 {[%clk 0:00:02]} 87. Rf1 {[%clk 0:01:08]}  Rc3 {[%clk 0:00:02]} 88. Kf6 {[%clk 0:01:09]}  Kd7 {[%clk 0:00:03]} 89. Ke5 {[%clk 0:01:09]}  Kc6 {[%clk 0:00:03]} 90. Kd4 {[%clk 0:01:10]}  Ra3 {[%clk 0:00:04]} 91. Kc4 {[%clk 0:01:11]}  Kb6 {[%clk 0:00:04]} 92. Kb4 {[%clk 0:01:11]}  Re3 {[%clk 0:00:05]} 93. Rf2 {[%clk 0:01:11]}  Kc6 {[%clk 0:00:05]} 94. Kc4 {[%clk 0:01:12]}  Kd6 {[%clk 0:00:05]} 95. Kd4 {[%clk 0:01:12]}  Ra3 {[%clk 0:00:06]} 96. Ke4 {[%clk 0:01:13]}  Ke6 {[%clk 0:00:06]} 97. Kd4 {[%clk 0:01:14]}  Kf5 {[%clk 0:00:06]} 98. Rf1 {[%clk 0:01:12]}  Kg4 {[%clk 0:00:06]} 99. Rg1+ {[%clk 0:01:13]}  Kf4 {[%clk 0:00:06]} 100. Rf1 {[%clk 0:01:08]}  Kg3 {[%clk 0:00:06]} 101. Ke4 {[%clk 0:01:08]}  f2 {[%clk 0:00:06]} 102. Rb1 {[%clk 0:01:09]}  Kg2 {[%clk 0:00:06]} 103. Rb2 {[%clk 0:01:09]}  Kg1 {[%clk 0:00:07]} 104. Rb1+ {[%clk 0:01:08]}  f1=Q {[%clk 0:00:07]} 0-1


[Site "https://www.chess.com"]